fUSD/lending_fUSD_20251220
["ID","MTS","AMOUNT","RATE_DAILY","PERIOD"]
[399250614,1766205038616,-1000.0,0.0001442,2]
[399250615,1766205038627,-166.66,0.00014623,2]
[399250616,1766205038636,-1154.66111645,0.00015,2]
[399250617,1766205038645,-21450.94429117,0.00015,2]
[399250618,1766205038654,-166.66,0.00015106,2]
[399250619,1766205038664,-30136.10767856,0.00015259,2]
[399250620,1766205038672,-505.81490245,0.000154,2]
[399250621,1766205038682,-166.66,0.00015589,2]
[399250622,1766205038690,-13063.18912077,0.00015596,2]
[399250623,1766205038699,-2228.79457528,0.00015807,2]
[399250624,1766205038708,-250.0,0.00015893,2]
[399250625,1766205038717,-251037.70267655,0.00016,2]
[399250626,1766205038727,-1457777.85032146,0.00016,4]
[399250627,1766205038736,-300.0,0.00016045,2]
[399250628,1766205038745,-151.49542101,0.00016045,2]
[399250629,1766205038754,-166.66,0.00016071,2]
[399250630,1766205038763,-536.6359884,0.00016159,2]
[399250631,1766205038772,-160.47,0.00016169,2]
[399250632,1766205038781,-5000.00645585,0.000162,5]
[399250633,1766205038790,-1000.0,0.00016222,2]
[399250634,1766205038800,-577.20648211,0.000163,2]
[399250635,1766205038809,-500.0,0.000163,2]
[399250636,1766205038819,-529.96646376,0.000163,2]
[399250637,1766205038829,-500.0,0.00016438,2]
[399250638,1766205038838,-500.0,0.00016438,2]
[399250639,1766205038848,-500.0,0.00016438,2]
[399250640,1766205038858,-500.0,0.00016438,2]
[399250641,1766205038868,-500.0,0.00016438,2]
[399250642,1766205038878,-500.0,0.00016438,2]
[399250643,1766205038887,-500.0,0.00016438,2]
[399250644,1766205038897,-328.69104201,0.00016438,2]
[399250645,1766205038907,-500.0,0.00016438,2]
[399250646,1766205038916,-500.0,0.00016438,2]
[399250647,1766205038926,-500.0,0.00016438,2]
[399250648,1766205038936,-500.0,0.00016438,2]
[399250649,1766205038946,-500.0,0.00016438,2]
[399250650,1766205038956,-500.0,0.00016438,2]
[399250651,1766205038965,-500.0,0.00016438,2]
[399250652,1766205038975,-500.0,0.00016438,2]
[399250653,1766205038984,-500.0,0.00016438,2]
[399250654,1766205038994,-500.0,0.00016438,2]
[399250655,1766205039004,-500.0,0.00016438,2]
[399250656,1766205039014,-500.0,0.00016438,2]
[399250657,1766205039024,-500.0,0.00016438,2]
[399250658,1766205039033,-500.0,0.00016438,2]
[399250659,1766205039043,-592.36853989,0.00016438,2]
[399250660,1766205039054,-16455.85,0.00016438,2]
[399250661,1766205039064,-12061.11125103,0.00016518,2]
[399250662,1766205039073,-166.66,0.00016554,2]
[399250663,1766205039082,-358.62936828,0.000166,2]
[399250664,1766205039093,-7354.21245475,0.00016784,2]
[399250665,1766205039102,-998.88830841,0.00016848,2]
[399250666,1766205039112,-1020.00417659,0.000169,2]
[399250667,1766205039121,-544.41244372,0.000169,2]
[399250668,1766205039131,-150.09235231,0.00016973,2]
[399250669,1766205039142,-308.45911544,0.00016999,2]
[399250670,1766205039152,-250.0,0.00017,2]
[399250671,1766205039162,-279758.90871743,0.00017,2]
[399250672,1766205039828,-813.42618429,0.00012243,2]
[399250673,1766205039885,-186.57381571,0.00012243,2]
[399250674,1766205039894,-7924.43542203,0.00017,2]
[399250675,1766205039906,-6019412.57824211,0.00017,2]
[399250683,1766205042492,-338.28459543,0.000169,2]
[399250685,1766205042502,-1452.81580307,0.00017,2]
[399250686,1766205042515,-384.996,0.00017,2]
[399250687,1766205042760,-17000.88462548,0.00017,2]
[399250692,1766205045539,-538.9811538,0.00017,2]
[399250693,1766205045808,-74257.69775291,0.00017,2]
[399250694,1766205045820,-3644.00857318,0.00017,2]
[399250695,1766205045831,-913.30379439,0.00017,2]
[399250696,1766205045868,-598.44994,0.00017,2]
[399250697,1766205045880,-1162.56349336,0.00017,2]
[399250700,1766205525214,1019.77444314,0.0001374,5]
[399250702,1766205781048,224.61,9.734e-05,2]
[399250721,1766205992469,488.68,0.00011662,2]
[399250722,1766206128043,1600.0,0.00011623,2]
[399250725,1766206231597,-247.0,0.00011821,2]
[399250726,1766206231609,-187.30330845,0.00011821,2]
[399250727,1766206231622,-7.69669155,0.00011821,2]
[399250728,1766206231631,-407.52,0.00011821,2]
[399250729,1766206231641,-195.0,0.00011821,2]
[399250730,1766206231651,-250.0,0.00011821,2]
[399250731,1766206231661,-190.32381134,0.00011821,2]
[399250732,1766206231671,-195.0,0.0001188,2]
[399250733,1766206231680,-150.0,0.00011894,2]
[399250734,1766206231690,-209.68868196,0.00011941,2]
[399250735,1766206231699,-341.34219215,0.00011941,2]
[399250736,1766206231709,-500.0,0.00011941,2]
[399250737,1766206231723,-1200.0,0.00011941,2]
[399250738,1766206231735,-300.0,0.00011941,2]
[399250739,1766206231744,-1640.18827355,0.00011942,2]
[399250740,1766206231755,-16152.48822248,0.00011942,2]
[399250743,1766206232033,-404.53844161,0.00011941,2]
[399250744,1766206232046,-102.12586625,0.00011941,2]
[399250745,1766206232057,-365.32444306,0.00011942,2]
[399250746,1766206232251,-416.97000018,0.00011942,2]
[399250747,1766206232264,-315.28959052,0.00011942,2]
[399250748,1766206232276,-446.99893371,0.00011942,2]
[399250749,1766206232288,-344.53675064,0.00011942,2]
[399250750,1766206232398,-462.11065713,0.00011942,2]
[399250751,1766206232409,-575.6218544,0.00011942,2]
[399250752,1766206237606,-241.60551601,0.00011941,2]
[399250753,1766206237615,-500.0,0.00011941,2]
[399250754,1766206237625,-249.38125567,0.00011941,2]
[399250755,1766206237661,-250.61874433,0.00011941,2]
[399250756,1766206237670,-360.58670684,0.00011941,2]
[399250757,1766206237717,-139.41329316,0.00011941,2]
[399250758,1766206237726,-153.28304284,0.00011941,2]
[399250759,1766206237737,-346.71695716,0.00011941,2]
[399250760,1766206237746,-500.0,0.00011941,2]
[399250761,1766206237755,-547.305657,0.00011941,2]
[399250762,1766206237766,-979280.47127433,0.00011942,2]
[399250763,1766206237776,-69615.9037,0.00011943,2]
[399250764,1766206237785,-150.0,0.00012041,2]
[399250765,1766206237795,-1200.0,0.00012041,2]
[399250766,1766206237805,-2500.0,0.00012042,2]
[399250767,1766206237816,-946.01697049,0.00012043,2]
[399250768,1766206237825,-1000.0,0.00012043,2]
[399250769,1766206237834,-5852.60752696,0.00012043,2]
[399250770,1766206237846,-2662.4506,0.0001211,2]
[399250771,1766206237855,-1647.70919262,0.00012132,2]
[399250772,1766206237864,-500.0,0.00012136,2]
[399250773,1766206237874,-150.99,0.00012136,2]
[399250775,1766206237883,-4999.99,0.00012136,2]
[399250777,1766206237892,-500.0,0.00012136,2]
[399250779,1766206237901,-200.0,0.00012136,2]
[399250781,1766206237909,-151.0,0.00012136,2]
[399250783,1766206237919,-151.0,0.00012136,2]
[399250785,1766206237928,-151.0,0.00012136,2]
[399250787,1766206237938,-151.0,0.00012136,2]
[399250789,1766206237947,-151.0,0.00012136,2]
[399250791,1766206237957,-151.0,0.00012136,2]
[399250793,1766206237966,-151.0,0.00012136,2]
[399250795,1766206237975,-151.0,0.00012136,2]
[399250797,1766206237984,-151.0,0.00012136,2]
[399250799,1766206237993,-355.42802195,0.00012136,2]
[399250801,1766206238002,-151.0,0.00012136,2]
[399250803,1766206238011,-151.0,0.00012136,2]
[399250805,1766206238021,-151.0,0.00012136,2]
[399250807,1766206238030,-151.0,0.00012136,2]
[399250809,1766206238039,-151.0,0.00012136,2]
[399250811,1766206238049,-151.0,0.00012136,2]
[399250813,1766206238058,-151.0,0.00012136,2]
[399250815,1766206238068,-151.0,0.00012136,2]
[399250817,1766206238077,-151.0,0.00012136,2]
[399250819,1766206238087,-151.0,0.00012136,2]
[399250821,1766206238097,-151.0,0.00012136,2]
[399250823,1766206238106,-500.0,0.00012136,2]
[399250825,1766206238115,-500.0,0.00012136,2]
[399250827,1766206238125,-500.0,0.00012136,2]
[399250829,1766206238134,-500.0,0.00012136,2]
[399250831,1766206238144,-500.0,0.00012136,2]
[399250833,1766206238159,-500.0,0.00012136,2]
[399250835,1766206238169,-500.0,0.00012136,2]
[399250837,1766206238179,-500.0,0.00012136,2]
[399250839,1766206238188,-500.0,0.00012136,2]
[399250841,1766206238197,-500.0,0.00012136,2]
[399250843,1766206238206,-500.0,0.00012136,2]
[399250845,1766206238214,-500.0,0.00012136,2]
[399250847,1766206238224,-500.0,0.00012136,2]
[399250849,1766206238232,-500.0,0.00012136,2]
[399250851,1766206238241,-500.0,0.00012136,2]
[399250852,1766206238250,-500.0,0.00012136,2]
[399250855,1766206238260,-500.0,0.00012136,2]
[399250857,1766206238269,-500.0,0.00012136,2]
[399250858,1766206238279,-500.0,0.00012136,2]
[399250860,1766206238288,-500.0,0.00012136,2]
[399250862,1766206238297,-500.0,0.00012136,2]
[399250865,1766206238307,-500.0,0.00012136,2]
[399250866,1766206238316,-200.0,0.00012136,2]
[399250868,1766206238326,-151.0,0.00012136,2]
[399250870,1766206238335,-151.0,0.00012136,2]
[399250872,1766206238346,-151.0,0.00012136,2]
[399250874,1766206238355,-151.0,0.00012136,2]
[399250876,1766206238364,-151.0,0.00012136,2]
[399250878,1766206238374,-151.0,0.00012136,2]
[399250880,1766206238384,-151.0,0.00012136,2]
[399250882,1766206238393,-151.0,0.00012136,2]
[399250884,1766206238402,-151.0,0.00012136,2]
[399250886,1766206238412,-151.0,0.00012136,2]
[399250888,1766206238421,-151.0,0.00012136,2]
[399250890,1766206238430,-200.0,0.00012136,2]
[399250892,1766206238439,-1964.07,0.00012136,2]
[399250894,1766206238448,-894.91811465,0.00012142,2]
[399250896,1766206238458,-2741.81,0.00012142,2]
[399250898,1766206238468,-5722.67,0.00012142,2]
[399250900,1766206238477,-999.99,0.00012142,2]
[399250902,1766206238486,-299.99,0.00012142,2]
[399250904,1766206238495,-3805.42,0.00012142,2]
[399250906,1766206238504,-67970.65,0.00012142,2]
[399250908,1766206238513,-19999.99,0.00012142,2]
[399250910,1766206238522,-9999.99,0.00012142,2]
[399250912,1766206238531,-41275.4,0.00012142,2]
[399250914,1766206238540,-1530.67,0.00012142,2]
[399250916,1766206238550,-9999.99,0.00012142,2]
[399250918,1766206238559,-9999.99,0.00012142,2]
[399250920,1766206238568,-9999.99,0.00012142,2]
[399250922,1766206238577,-499.99,0.00012142,2]
[399250924,1766206238586,-1574.22,0.00012142,2]
[399250926,1766206238595,-1807.42,0.00012142,2]
[399250928,1766206238604,-150.99,0.00012142,2]
[399250930,1766206238613,-479.28145692,0.00012143,2]
[399250932,1766206238623,-33491.4068,0.00012243,2]
[399250934,1766206238631,-500.0,0.0001241,2]
[399250935,1766206238640,-1964.07,0.0001241,2]
[399250937,1766206238649,-200.0,0.00012452,2]
[399250939,1766206238658,-407.52,0.00012478,2]
[399250941,1766206238667,-500.0,0.00012684,2]
[399250943,1766206238677,-200.0,0.00012684,2]
[399250945,1766206238686,-200.0,0.00012684,2]
[399250948,1766206238695,-1964.07,0.00012684,2]
[399250949,1766206238704,-1852.42,0.00012692,2]
[399250951,1766206238713,-946.01697048,0.00012737,2]
[399250953,1766206238723,-479.28145689,0.00012942,2]
[399250955,1766206238732,-1964.07,0.00012958,2]
[399250958,1766206238742,-250.0,0.00013003,2]
[399250960,1766206238751,-195.0,0.00013003,2]
[399250962,1766206238761,-250.0,0.00013003,2]
[399250963,1766206238770,-193.0,0.00013003,2]
[399250965,1766206238779,-195.0,0.00013003,2]
[399250967,1766206238788,-1600.0,0.00013076,2]
[399250969,1766206238797,-167.44206992,0.00013119,2]
[399250971,1766206238806,-18674.09523961,0.00013121,2]
[399250973,1766206238815,-255.0,0.00013125,2]
[399250975,1766206238824,-407.52,0.00013135,2]
[399250977,1766206238832,-297.0,0.00013173,2]
[399250979,1766206238842,-500.0,0.00013232,2]
[399250981,1766206238851,-200.0,0.00013232,2]
[399250983,1766206238860,-200.0,0.00013232,2]
[399250985,1766206238869,-1964.07,0.00013232,2]
[399250987,1766206238879,-417.06888544,0.00013242,2]
[399250990,1766206238889,-946.01697048,0.00013431,2]
[399250991,1766206238898,-1964.07,0.00013505,2]
[399250993,1766206238907,-236.38,0.00013551,2]
[399250995,1766206238917,-500.0,0.00013698,2]
[399250997,1766206238927,-500.0,0.00013698,2]
[399250999,1766206238936,-500.0,0.00013698,2]
[399251001,1766206238945,-500.0,0.00013698,2]
[399251003,1766206238954,-500.0,0.00013698,2]
[399251005,1766206238964,-500.0,0.00013698,2]
[399251007,1766206238973,-500.0,0.00013698,2]
[399251009,1766206238983,-500.0,0.00013698,2]
[399251011,1766206238992,-500.0,0.00013698,2]
[399251013,1766206239002,-500.0,0.00013698,2]
[399251015,1766206239011,-569.61503559,0.00013698,2]
[399251017,1766206239020,-500.0,0.00013698,2]
[399251019,1766206239029,-500.0,0.00013698,2]
[399251021,1766206239039,-500.0,0.00013698,2]
[399251023,1766206239051,-500.0,0.00013698,2]
[399251025,1766206239060,-500.0,0.00013698,2]
[399251026,1766206239069,-500.0,0.00013698,2]
[399251027,1766206239078,-500.0,0.00013698,2]
[399251028,1766206239087,-500.0,0.00013698,2]
[399251029,1766206239097,-244.59651847,0.00013698,2]
[399251030,1766206239107,-500.0,0.00013698,2]
[399251031,1766206239116,-500.0,0.00013698,2]
[399251032,1766206239126,-500.0,0.00013698,2]
[399251034,1766206239135,-294.2331637,0.00013698,2]
[399251036,1766206239146,-500.0,0.00013698,2]
[399251037,1766206239160,-500.0,0.00013698,2]
[399251039,1766206239170,-500.0,0.00013698,2]
[399251041,1766206239180,-500.0,0.00013698,2]
[399251044,1766206239191,-500.0,0.00013698,2]
[399251045,1766206239201,-500.0,0.00013698,2]
[399251047,1766206239211,-500.0,0.00013698,2]
[399251049,1766206239220,-500.0,0.00013698,2]
[399251051,1766206239231,-500.0,0.00013698,2]
[399251054,1766206239241,-500.0,0.00013698,2]
[399251056,1766206239250,-500.0,0.00013698,2]
[399251058,1766206239259,-500.0,0.00013698,2]
[399251060,1766206239268,-500.0,0.00013698,2]
[399251062,1766206239278,-422.41999488,0.00013698,2]
[399251064,1766206239287,-500.0,0.00013698,2]
[399251066,1766206239296,-500.0,0.00013698,2]
[399251068,1766206239305,-500.0,0.00013698,2]
[399251070,1766206239315,-500.0,0.00013698,2]
[399251071,1766206239324,-500.0,0.00013698,2]
[399251073,1766206239332,-500.0,0.00013698,2]
[399251075,1766206239341,-500.0,0.00013698,2]
[399251077,1766206239350,-500.0,0.00013698,2]
[399251079,1766206239360,-500.0,0.00013698,2]
[399251081,1766206239368,-500.0,0.00013698,2]
[399251083,1766206239378,-500.0,0.00013698,2]
[399251085,1766206239387,-500.0,0.00013698,2]
[399251087,1766206239396,-500.0,0.00013698,2]
[399251089,1766206239405,-500.0,0.00013698,2]
[399251091,1766206239414,-500.0,0.00013698,2]
[399251093,1766206239424,-500.0,0.00013698,2]
[399251095,1766206239433,-500.0,0.00013698,2]
[399251097,1766206239443,-500.0,0.00013698,2]
[399251100,1766206239452,-500.0,0.00013698,2]
[399251102,1766206239462,-500.0,0.00013698,2]
[399251103,1766206239472,-500.0,0.00013698,2]
[399251106,1766206239481,-500.0,0.00013698,2]
[399251108,1766206239490,-500.0,0.00013698,2]
[399251109,1766206239499,-500.0,0.00013698,2]
[399251111,1766206239509,-500.0,0.00013698,2]
[399251113,1766206239518,-500.0,0.00013698,2]
[399251116,1766206239528,-500.0,0.00013698,2]
[399251117,1766206239536,-500.0,0.00013698,2]
[399251119,1766206239545,-500.0,0.00013698,2]
[399251121,1766206239555,-500.0,0.00013698,2]
[399251123,1766206239563,-500.0,0.00013698,2]
[399251125,1766206239572,-500.0,0.00013698,2]
[399251127,1766206239581,-500.0,0.00013698,2]
[399251129,1766206239590,-500.0,0.00013698,2]
[399251131,1766206239599,-500.0,0.00013698,2]
[399251133,1766206239608,-500.0,0.00013698,2]
[399251135,1766206239617,-502.93074974,0.00013698,2]
[399251137,1766206239626,-500.0,0.00013698,2]
[399251139,1766206239635,-500.0,0.00013698,2]
[399251141,1766206239644,-500.0,0.00013698,2]
[399251143,1766206239653,-500.0,0.00013698,2]
[399251145,1766206239662,-500.0,0.00013698,2]
[399251147,1766206239672,-500.0,0.00013698,2]
[399251149,1766206239681,-500.0,0.00013698,2]
[399251151,1766206239690,-500.0,0.00013698,2]
[399251153,1766206239699,-500.0,0.00013698,2]
[399251155,1766206239707,-500.0,0.00013698,2]
[399251157,1766206239716,-500.0,0.00013698,2]
[399251159,1766206239725,-500.0,0.00013698,2]
[399251161,1766206239734,-500.0,0.00013698,2]
[399251163,1766206239743,-518.52076054,0.00013698,2]
[399251165,1766206239752,-500.0,0.00013698,2]
[399251167,1766206239761,-500.0,0.00013698,2]
[399251169,1766206239770,-500.0,0.00013698,2]
[399251171,1766206239780,-500.0,0.00013698,2]
[399251173,1766206239789,-500.0,0.00013698,2]
[399251175,1766206239798,-500.0,0.00013698,2]
[399251177,1766206239807,-520.35217826,0.00013698,2]
[399251179,1766206239817,-500.0,0.00013698,2]
[399251181,1766206239826,-500.0,0.00013698,2]
[399251183,1766206239835,-500.0,0.00013698,2]
[399251185,1766206239844,-322.99177949,0.00013698,2]
[399251187,1766206239853,-500.0,0.00013698,2]
[399251189,1766206239863,-500.0,0.00013698,2]
[399251191,1766206239872,-500.0,0.00013698,2]
[399251193,1766206239880,-500.0,0.00013698,2]
[399251195,1766206239890,-500.0,0.00013698,2]
[399251197,1766206239899,-545.71710874,0.00013698,2]
[399251199,1766206239907,-894.54,0.00013699,2]
[399251201,1766206239916,-166.66,0.00013699,2]
[399251203,1766206239926,-500.0,0.00013699,2]
[399251205,1766206239936,-500.0,0.00013699,2]
[399251207,1766206239945,-500.0,0.00013699,2]
[399251209,1766206239954,-470.3164512,0.00013699,2]
[399251211,1766206239963,-500.0,0.00013699,2]
[399251213,1766206239972,-500.0,0.00013699,2]
[399251215,1766206239980,-500.0,0.00013699,2]
[399251217,1766206239989,-500.0,0.00013699,2]
[399251219,1766206239998,-2748.82,0.000137,2]
[399251221,1766206240008,-2748.82,0.000137,2]
[399251223,1766206240017,-2748.82,0.000137,2]
[399251225,1766206240026,-2748.82,0.000137,2]
[399251227,1766206240035,-2748.82,0.000137,2]
[399251229,1766206240044,-500.0,0.00013728,2]
[399251231,1766206240053,-512.32849253,0.00013728,2]
[399251233,1766206240062,-479.28145689,0.00013741,2]
[399251235,1766206240071,-500.0,0.00013773,2]
[399251237,1766206240080,-500.63598857,0.00013773,2]
[399251238,1766206240089,-165.53185787,0.00013773,2]
[399251239,1766206240098,-500.0,0.00013773,2]
[399251240,1766206240107,-500.0,0.00013773,2]
[399251241,1766206240116,-172.76817182,0.00013773,2]
[399251242,1766206240126,-176.6683039,0.00013773,2]
[399251243,1766206240134,-500.0,0.00013773,2]
[399251244,1766206240143,-500.0,0.00013773,2]
[399251245,1766206240157,-500.0,0.00013773,2]
[399251246,1766206240167,-500.0,0.00013773,2]
[399251248,1766206240176,-168.59999571,0.00013773,2]
[399251250,1766206240186,-500.0,0.00013773,2]
[399251252,1766206240195,-500.0,0.00013773,2]
[399251253,1766206240204,-500.0,0.00013773,2]
[399251254,1766206240213,-179.50290541,0.00013773,2]
[399251255,1766206240222,-500.0,0.00013773,2]
[399251256,1766206240231,-165.7973653,0.00013773,2]
[399251257,1766206240240,-500.0,0.00013773,2]
[399251258,1766206240249,-500.0,0.00013773,2]
[399251259,1766206240259,-500.0,0.00013773,2]
[399251260,1766206240268,-500.0,0.00013773,2]
[399251261,1766206240277,-536.13646338,0.00013773,2]
[399251262,1766206240286,-500.0,0.00013773,2]
[399251263,1766206240295,-500.0,0.00013773,2]
[399251264,1766206240304,-500.0,0.00013773,2]
[399251265,1766206240314,-500.0,0.00013773,2]
[399251266,1766206240323,-500.0,0.00013773,2]
[399251267,1766206240332,-500.0,0.00013773,2]
[399251268,1766206240340,-315.42381846,0.00013773,2]
[399251269,1766206240350,-500.0,0.00013773,2]
[399251270,1766206240359,-500.0,0.00013773,2]
[399251271,1766206240368,-165.31243658,0.00013773,2]
[399251272,1766206240377,-216.27337885,0.00013773,2]
[399251273,1766206240386,-500.0,0.00013773,2]
[399251274,1766206240395,-1964.07,0.00013779,2]
[399251275,1766206240404,-500.0,0.0001378,2]
[399251276,1766206240413,-200.0,0.0001378,2]
[399251277,1766206240422,-200.0,0.0001378,2]
[399251278,1766206240431,-407.52,0.00013792,2]
[399251279,1766206240440,-166.66,0.00013836,2]
[399251280,1766206240450,-151.0,0.00013953,2]
[399251281,1766206240459,-151.0,0.00013955,2]
[399251282,1766206240468,-151.0,0.0001396,2]
[399251283,1766206240477,-166.66,0.00013973,2]
[399251284,1766206240486,-1964.07,0.00014053,2]
[399251285,1766206240496,-166.66,0.0001411,2]
[399251286,1766206240505,-946.01697048,0.00014125,2]
[399251287,1766206240514,-390.27278713,0.00014221,2]
[399251288,1766206240523,-166.66,0.00014247,2]
[399251289,1766206240532,-31236.18345544,0.00014257,2]
[399251290,1766206240541,-433.0,0.00014305,2]
[399251291,1766206240550,-1000.0,0.00014321,2]
[399251292,1766206240559,-1000.0,0.00014321,2]
[399251293,1766206240567,-1000.78461254,0.00014321,2]
[399251294,1766206240576,-572.75082077,0.00014321,2]
[399251295,1766206240586,-1135.18911943,0.00014321,2]
[399251296,1766206240595,-627.27365114,0.00014321,2]
[399251297,1766206240603,-1000.0,0.00014321,2]
[399251298,1766206240612,-208.16009032,0.00014321,2]
[399251299,1766206240622,-1000.0,0.00014321,2]
[399251300,1766206240631,-1000.0,0.00014321,2]
[399251301,1766206240640,-594.53896978,0.00014321,2]
[399251302,1766206240649,-1000.0,0.00014321,2]
[399251303,1766206240658,-483.93215772,0.00014321,2]
[399251304,1766206240667,-1000.0,0.00014321,2]
[399251305,1766206240677,-1002.93994495,0.00014321,2]
[399251306,1766206240686,-1000.0,0.00014321,2]
[399251307,1766206240696,-1000.0,0.00014321,2]
[399251308,1766206240705,-1000.0,0.00014321,2]
[399251309,1766206240714,-1000.0,0.00014321,2]
[399251310,1766206240723,-893.70965969,0.00014321,2]
[399251311,1766206240732,-1000.0,0.00014321,2]
[399251312,1766206240940,-1000.0,0.00014321,2]
[399251313,1766206240950,-500.31513524,0.00014321,2]
[399251314,1766206240960,-1000.0,0.00014321,2]
[399251315,1766206240969,-1964.07,0.00014327,2]
[399251316,1766206240979,-500.0,0.00014328,2]
[399251317,1766206240990,-200.0,0.00014328,2]
[399251318,1766206240999,-200.0,0.00014328,2]
[399251319,1766206241008,-166.66,0.00014384,2]
[399251320,1766206241018,-429.25176397,0.0001443,2]
[399251321,1766206241028,-407.52,0.00014448,2]
[399251322,1766206241038,-1600.0,0.00014529,2]
[399251323,1766206241047,-479.28145689,0.0001454,2]
[399251324,1766206241056,-1964.07,0.00014601,2]
[399251325,1766206241065,-31236.18345544,0.00014786,2]
[399251326,1766206241075,-454.60425967,0.00014814,2]
[399251327,1766206241083,-946.01697048,0.00014818,2]
[399251328,1766206241093,-1609.34995974,0.00014868,2]
[399251329,1766206241103,-1001.91769362,0.00014868,2]
[399251330,1766206241112,-1500.0,0.00014868,2]
[399251331,1766206241121,-1500.0,0.00014868,2]
[399251332,1766206241130,-1503.97714891,0.00014868,2]
[399251333,1766206241140,-365.94030489,0.00014868,2]
[399251334,1766206241152,-1500.0,0.00014868,2]
[399251335,1766206241162,-1501.51415398,0.00014868,2]
[399251336,1766206241172,-1001.58945381,0.00014868,2]
[399251337,1766206241181,-502.20443143,0.00014868,2]
[399251338,1766206241193,-1502.00400434,0.00014868,2]
[399251339,1766206241203,-1501.18432329,0.00014868,2]
[399251340,1766206241213,-1500.0,0.00014868,2]
[399251341,1766206241222,-1500.0,0.00014868,2]
[399251342,1766206241232,-207.4,0.00014875,2]
[399251343,1766206241242,-1964.07,0.00014875,2]
[399251344,1766206241251,-500.0,0.00014876,2]
[399251345,1766206241260,-200.0,0.00014876,2]
[399251346,1766206241271,-200.0,0.00014876,2]
[399251347,1766206241281,-501.29502757,0.00014955,2]
[399251348,1766206241290,-500.0,0.00014955,2]
[399251349,1766206241299,-900.0,0.00015068,2]
[399251350,1766206241308,-407.52,0.00015105,2]
[399251351,1766206241318,-1964.07,0.00015149,2]
[399251352,1766206241327,-394.00843094,0.00015241,2]
[399251353,1766206241337,-155.64705311,0.00015288,2]
[399251354,1766206241346,-160.33063992,0.00015288,2]
[399251355,1766206241355,-158.48329942,0.00015288,2]
[399251356,1766206241364,-156.76422926,0.00015288,2]
[399251357,1766206241373,-151.72084113,0.00015288,2]
[399251358,1766206241382,-151.68546767,0.00015288,2]
[399251359,1766206241391,-152.11986511,0.00015288,2]
[399251360,1766206241401,-152.94375339,0.00015288,2]
[399251361,1766206241410,-152.70737667,0.00015288,2]
[399251362,1766206241420,-155.96693599,0.00015288,2]
[399251363,1766206241429,-150.82546103,0.00015288,2]
[399251364,1766206241439,-31236.18345544,0.00015314,2]
[399251365,1766206241450,-479.28145689,0.00015339,2]
[399251366,1766206241460,-1501.47727649,0.00015416,2]
[399251367,1766206241469,-1188.04388907,0.00015416,2]
[399251368,1766206241478,-2000.0,0.00015416,2]
[399251369,1766206241486,-2002.17420355,0.00015416,2]
[399251370,1766206241495,-1503.12423045,0.00015416,2]
[399251371,1766206241504,-1964.07,0.00015423,2]
[399251372,1766206241513,-500.0,0.00015424,2]
[399251373,1766206241522,-200.0,0.00015424,2]
[399251374,1766206241531,-200.0,0.00015424,2]
[399251375,1766206241540,-946.01697048,0.00015512,2]
[399251376,1766206241549,-390.27278712,0.00015561,2]
[399251377,1766206241559,-162.0,0.00015593,2]
[399251378,1766206241569,-250.0,0.0001562,2]
[399251379,1766206241579,-1964.07,0.00015697,2]
[399251380,1766206241588,-407.52,0.00015762,2]